bitfinex/quotes_ETHUSD_20240731
["timestamp","ask_amount","ask_price","bid_price","bid_amount"]
[1722467276053,7.37252157,3244.0,3243.5,3.08308]
[1722467276221,1.289524,3243.9,3243.5,3.08308]
[1722467276843,0.04983654,3243.8,3243.5,3.08308]
[1722467278015,1.289524,3244.0,3243.5,0.42996683]
[1722467278222,0.04957461,3243.9,3243.8,3.08275]
[1722467278416,1.289524,3244.3,3243.9,3.0827]
[1722467279349,10.55224,3244.4,3243.9,3.0827]
[1722467279548,10.55224,3244.4,3243.7,3.08282]
[1722467279549,1.28910633,3244.2,3243.7,3.08282]
[1722467280112,1.28910633,3244.3,3243.7,3.08282]
[1722467280328,4.37144633,3244.3,3243.8,3.08279]
[1722467280535,4.37144633,3244.3,3243.7,3.08282]
[1722467280536,1.28910633,3244.2,3243.7,3.08282]
[1722467280764,1.28910633,3244.3,3243.8,3.0828]
[1722467282253,1.28910633,3244.3,3243.8,6.16554]
[1722467282550,11.84133633,3244.4,3243.7,3.08283]
[1722467282758,4.37148633,3244.3,3243.7,3.08283]
[1722467282970,1.28910633,3244.3,3243.8,3.08278]
[1722467283149,7.47,3244.4,3243.9,3.08269]
[1722467283150,8.75910633,3244.4,3243.9,3.08269]
[1722467283325,8.75910633,3244.4,3243.8,3.08278]
[1722467283326,11.84135633,3244.4,3243.8,3.08278]
[1722467283948,3.08233,3244.3,3243.8,3.08278]
[1722467284140,4.37143633,3244.3,3243.8,3.08278]
[1722467284461,1.28910633,3244.3,3243.9,3.08269]
[1722467284659,8.75910633,3244.4,3243.9,3.08269]
[1722467284835,8.75839598,3244.4,3243.9,3.08269]
[1722467285040,3.08243,3244.2,3243.7,3.08289]
[1722467285232,1.28839598,3244.3,3243.5,3.08305]
[1722467285450,3.08266,3244.0,3243.5,3.08305]
[1722467285647,3.08258,3244.1,3243.4,1.0]
[1722467285852,1.28837063,3244.1,3243.4,1.0]
[1722467286024,3.08285,3243.8,3243.4,1.0]
[1722467286355,3.08308,3243.5,3243.4,1.0]
[1722467286542,6.16616,3243.5,3243.4,1.0]
[1722467286732,3.79633929,3243.5,3243.4,1.0]
[1722467287674,6.87941929,3243.5,3243.4,1.0]
[1722467287819,7.84585221,3243.5,3243.4,1.0]
[1722467288024,6.87941929,3243.5,3243.4,1.0]
[1722467288258,8.49039179,3243.5,3243.4,1.0]
[1722467288431,9.96249929,3243.5,3243.4,1.0]
[1722467288630,11.57347179,3243.5,3243.4,1.0]
[1722467288829,8.49039179,3243.5,3243.4,1.0]
[1722467289150,6.87941929,3243.5,3243.4,1.0]
[1722467290253,8.1681338,3243.5,3243.4,1.0]
[1722467290957,6.87941929,3243.5,3243.4,1.0]
[1722467291463,4.69402096,3243.6,3243.4,1.0]
[1722467291630,0.96647973,3243.5,3243.4,1.0]
[1722467291831,3.1328858,3243.5,3243.4,1.0]
[1722467292167,4.09936964,3243.5,3243.4,1.0]
[1722467292458,3.1328858,3243.5,3243.4,1.0]
[1722467292827,4.09937628,3243.5,3243.4,1.0]
[1722467293230,7.18245204,3243.5,3243.4,1.0]
[1722467293440,6.2159658,3243.5,3243.4,1.0]
[1722467293852,7.50481233,3243.5,3243.4,1.0]
[1722467294453,4.09938087,3243.5,3243.4,1.0]
[1722467294894,3.1328858,3243.5,3243.4,1.0]
[1722467295567,4.12157971,3243.5,3243.4,1.0]
[1722467296334,5.9159658,3243.5,3243.4,1.0]
[1722467296981,2.8328858,3243.5,3243.4,1.0]
[1722467297187,6.88252047,3243.5,3243.4,1.0]
[1722467297502,7.20472835,3243.5,3243.4,1.0]
[1722467297659,7.20473185,3243.5,3243.4,1.0]
[1722467298967,4.12165185,3243.5,3243.4,1.0]
[1722467299173,3.79947599,3243.5,3243.4,1.0]
[1722467299370,2.8328858,3243.5,3243.4,1.0]
[1722467300068,3.79957072,3243.5,3243.4,1.0]
[1722467300275,2.8328858,3243.5,3243.4,1.0]
[1722467301091,3.79957804,3243.5,3243.4,1.0]
[1722467301481,2.8328858,3243.5,3243.4,1.0]
[1722467301905,4.12165185,3243.5,3243.4,1.0]
[1722467302558,8.0863186,3243.5,3243.4,1.0]
[1722467302908,8.40869822,3243.5,3243.4,1.0]
[1722467303486,9.88063255,3243.5,3243.4,1.0]
[1722467304528,11.81534013,3243.5,3243.4,1.0]
[1722467304704,20.78088171,3243.5,3243.4,1.0]
[1722467305008,21.1034626,3243.5,3243.4,1.0]
[1722467305573,18.84539641,3243.5,3243.4,1.0]
[1722467305783,15.76231641,3243.5,3243.4,1.0]
[1722467305982,21.10439282,3243.5,3243.4,1.0]
[1722467306372,18.84539641,3243.5,3243.4,1.0]
[1722467306571,18.97994034,3243.5,3243.4,1.0]
[1722467306987,15.76231641,3243.5,3243.4,1.0]
[1722467307804,15.89685471,3243.5,3243.4,1.0]
[1722467308486,20.02244854,3243.5,3243.4,1.0]
[1722467308687,17.35293938,3243.5,3243.4,1.0]
[1722467308867,15.89685471,3243.5,3243.4,1.0]
[1722467309072,15.76231641,3243.5,3243.4,1.0]
[1722467310111,15.89685061,3243.5,3243.4,1.0]
[1722467310673,15.89684948,3243.5,3243.4,1.0]
[1722467310873,15.76231641,3243.5,3243.4,1.0]
[1722467311106,15.89684933,3243.5,3243.4,1.0]
[1722467311308,17.35273482,3243.5,3243.4,1.0]
[1722467311606,15.89684922,3243.5,3243.4,1.0]
[1722467312391,13.47551641,3243.5,3243.4,1.0]
[1722467312595,11.77191597,3243.5,3243.4,1.0]
[1722467312823,9.51084966,3243.5,3243.4,1.0]
[1722467313428,8.9159658,3243.5,3243.4,1.0]
[1722467313996,9.51042736,3243.5,3243.4,1.0]
[1722467314219,12.59360706,3243.5,3243.4,1.0]
[1722467314405,14.07904384,3243.5,3243.4,1.0]
[1722467314605,16.32914384,3243.5,3243.4,1.0]
[1722467315011,16.32914384,3243.5,3242.3,2.3827]
[1722467315012,3.08392,3242.7,3242.3,2.3827]
[1722467315208,0.96899091,3242.5,3242.3,2.3827]
[1722467315631,0.04895554,3242.4,3242.3,5.46693]
[1722467315939,0.96899091,3242.6,3242.3,6.32205]
[1722467316115,0.04895554,3242.4,3242.3,6.32205]
[1722467316309,0.96899091,3242.6,3242.3,6.32205]
[1722467316521,0.04893553,3242.4,3242.3,6.32205]
[1722467316711,0.96894992,3242.7,3242.3,6.32205]
[1722467316912,4.37569323,3242.8,3242.3,6.32205]
[1722467316913,0.96894992,3242.6,3242.5,6.16808]
[1722467317135,0.96894992,3242.6,3242.4,1.00231445]
[1722467317136,0.96894992,3242.8,3242.7,3.08384]
[1722467317804,0.96894992,3242.8,3242.7,8.55195456]
[1722467318035,0.96894992,3243.1,3242.6,3.08391]
[1722467318335,0.96894992,3243.2,3243.1,3.08346]
[1722467319543,0.96883793,3243.2,3243.1,3.08346]
[1722467319834,5.02071985,3243.8,3243.2,3.08332]
[1722467319835,3.08282,3243.8,3243.2,3.08332]
[1722467320045,1.29173431,3243.4,3243.3,0.616678]
[1722467321747,1.61466788,3243.4,3243.3,0.616678]
[1722467321933,0.04816088,3243.4,3243.0,3.08351]
[1722467322135,0.96889259,3243.2,3243.1,3.08346]
[1722467322524,1.01692825,3243.2,3242.8,5.40629]
[1722467322852,0.96889259,3243.1,3243.0,3.08356]
[1722467323025,0.96894274,3243.1,3243.0,3.08356]
[1722467323223,0.96894274,3243.1,3242.9,3.6551181]
[1722467323224,1.01692328,3243.1,3242.9,3.6551181]
[1722467323424,1.01695313,3243.1,3243.0,3.08356]
[1722467324352,1.01695313,3243.1,3243.0,6.16712]
[1722467324521,0.04798054,3243.1,3243.0,7.07323881]
[1722467324722,1.29192366,3243.4,3243.2,3.0833]
[1722467325038,1.29192366,3243.4,3243.0,3.98958881]
[1722467325252,0.96911592,3243.2,3243.0,4.05125319]
[1722467325549,0.96911592,3243.2,3243.1,3.08346]
[1722467325748,0.96911592,3243.2,3243.1,3.79693141]
[1722467326354,0.96922974,3243.2,3243.1,3.79693141]
[1722467327033,0.96922974,3243.3,3243.2,3.08337]
[1722467327512,0.96922458,3243.3,3243.2,3.08337]
[1722467327717,1.29230632,3243.4,3243.2,3.08337]
[1722467327918,1.29230632,3243.4,3243.3,0.68803014]
[1722467328637,1.29230632,3243.4,3243.3,3.77130014]
[1722467329523,3.0828,3243.8,3243.3,3.77130014]
[1722467330753,1.61655099,3243.5,3243.3,3.77130014]
[1722467331058,3.0828,3243.8,3243.3,3.77130014]
[1722467331255,3.0829,3243.7,3243.3,0.68803014]
[1722467331457,3.0829,3243.7,3243.4,0.2]
[1722467332148,3.08305,3243.6,3243.4,0.2]
[1722467332350,6.16588,3243.7,3243.4,0.2]
[1722467332658,6.16616,3243.5,3243.4,0.2]
[1722467333221,6.7610584,3243.5,3243.4,0.2]
[1722467336445,3.6779784,3243.5,3243.4,0.2]
[1722467336633,3.08308,3243.5,3243.4,0.2]
[1722467336834,3.12976725,3243.5,3243.4,0.2]
[1722467337837,3.72446851,3243.5,3243.4,0.2]
[1722467338889,2.82976725,3243.5,3243.4,0.2]
[1722467339178,1.68715583,3243.5,3243.4,0.2]
[1722467339374,3.12823114,3243.5,3243.4,0.2]
[1722467339689,5.06867264,3243.5,3243.4,0.2]
[1722467340224,3.12823114,3243.5,3243.4,0.2]
[1722467340546,7.65351381,3243.5,3243.4,0.2]
[1722467340725,9.91736223,3243.5,3243.4,0.2]
[1722467341155,7.65351381,3243.5,3243.4,0.2]
[1722467341459,9.91736223,3243.5,3243.4,0.2]
[1722467341660,7.65351381,3243.5,3243.4,0.2]
[1722467341862,10.73659381,3243.5,3243.4,0.2]
[1722467342065,13.36559381,3243.5,3243.4,0.2]
[1722467342221,19.17468801,3243.5,3243.4,0.2]
[1722467342538,19.17493799,3243.5,3243.4,0.2]
[1722467342937,22.25811933,3243.5,3243.4,0.2]
[1722467343139,19.5833036,3243.5,3243.4,0.2]
[1722467344574,13.8712236,3243.5,3243.4,0.2]
[1722467345066,16.81977515,3243.5,3243.4,0.2]
[1722467345424,16.95431124,3243.5,3243.4,0.2]
[1722467345751,16.81977515,3243.5,3243.4,0.2]
[1722467346058,16.95431691,3243.5,3243.4,0.2]
[1722467346823,13.87123691,3243.5,3243.4,0.2]
[1722467347230,13.87123815,3243.5,3243.4,0.2]
[1722467348047,13.73669515,3243.5,3243.4,0.2]
[1722467348334,13.87123734,3243.5,3243.4,0.2]
[1722467349233,16.95431734,3243.5,3243.4,0.2]
[1722467349784,19.62762424,3243.5,3243.4,0.2]
[1722467349986,16.95431734,3243.5,3243.4,0.2]
[1722467350839,3.08423,3242.3,3242.1,2.4919]
[1722467351052,1.29322022,3242.2,3242.1,2.4919]
[1722467351271,3.12531159,3242.2,3242.1,2.4919]
[1722467351636,3.12531159,3242.2,3241.7,3.08474]
[1722467351835,1.2931277,3242.1,3241.8,2.2699]
[1722467352161,0.0408663,3242.0,3241.8,2.805364]
[1722467352860,1.2931277,3241.9,3241.8,2.2699]
[1722467353062,3.08461,3241.9,3241.8,2.2699]
[1722467353240,4.74196013,3241.9,3241.8,2.2699]
[1722467354044,4.41819652,3241.9,3241.8,2.2699]
[1722467354251,4.74196013,3241.9,3241.8,2.2699]
[1722467354446,0.04082485,3241.9,3241.8,2.2699]
[1722467354650,1.33329418,3241.9,3241.8,2.49689]
[1722467354975,0.04082485,3241.9,3241.8,2.49689]
[1722467355184,1.29238282,3241.9,3241.8,2.49689]
[1722467355338,0.04099045,3241.9,3241.8,2.49689]
[1722467355539,1.33337327,3241.9,3241.8,2.49689]
[1722467356337,0.04099045,3241.9,3241.8,2.49689]
[1722467356961,1.33337327,3241.9,3241.8,2.49689]
[1722467357162,1.33337327,3241.9,3241.8,2.2699]
[1722467357678,4.41798327,3241.9,3241.8,2.2699]
[1722467357976,4.41798327,3241.9,3241.5,2.2718]
[1722467358762,3.08471,3241.8,3241.5,2.2718]
[1722467358972,0.04055841,3241.7,3241.5,2.2718]
[1722467359169,4.37709282,3241.8,3241.5,2.2718]
[1722467359371,3.08461,3241.9,3241.5,2.2718]
[1722467359372,3.12535091,3241.7,3241.5,2.2718]
[1722467360975,3.12535091,3241.7,3241.1,5.50282]
[1722467360976,3.08489,3241.6,3241.1,5.50282]
[1722467361139,0.04045434,3241.5,3241.2,7.029279]
[1722467361339,3.0848,3241.7,3241.2,3.944039]
[1722467361544,0.04037153,3241.6,3241.2,3.944039]
[1722467362275,0.04037153,3241.6,3241.2,0.858819]
[1722467363168,0.04037153,3241.6,3241.2,3.944069]
[1722467364268,0.04037153,3241.6,3241.2,0.858819]
[1722467364886,0.04037153,3241.6,3241.2,3.944079]
[1722467365052,0.04037153,3241.6,3241.3,0.6361579]
[1722467365247,3.08471,3241.8,3241.3,0.6361579]
[1722467365470,0.04031637,3241.5,3241.2,3.0852]
[1722467365680,0.04031637,3241.5,3239.1,16.42957184]
[1722467365681,3.08527,3241.2,3240.8,2.3459]
[1722467365971,3.08546,3241.0,3240.8,2.3459]
[1722467366285,0.0404402,3240.9,3240.5,5.35218]
[1722467366587,0.0404402,3240.9,3240.5,5.67253338]
[1722467366803,0.0404402,3240.9,3240.5,5.67252338]
[1722467366951,3.08539,3241.1,3240.5,5.67252338]
[1722467367145,0.04051554,3241.0,3240.5,5.67252338]
[1722467367453,3.12598554,3241.0,3240.5,5.67252338]
[1722467368159,3.12598554,3241.0,3240.5,2.58665338]
[1722467368360,3.08556,3240.9,3240.5,2.58665338]
[1722467368687,0.04028505,3240.8,3240.5,2.58665338]
[1722467372121,0.04028505,3240.8,3240.7,3.08575]
[1722467372322,3.08513,3241.4,3240.7,3.08575]
[1722467372620,3.08513,3241.4,3240.5,2.58665338]
[1722467372621,3.08529,3241.2,3240.5,5.73421476]
[1722467372824,0.03991053,3241.1,3240.6,3.08581]
[1722467373227,0.03991053,3241.1,3240.7,3.08575]
[1722467373443,0.03991053,3241.1,3240.6,0.88201548]
[1722467373638,0.03991053,3241.1,3240.5,5.35215]
[1722467373791,3.12530053,3241.1,3240.6,3.08576]
[1722467374623,3.12530053,3241.1,3240.5,2.2663]
[1722467374811,3.12530053,3241.1,3240.5,5.35223]
[1722467374993,3.08546,3241.0,3240.5,5.35223]
[1722467375358,0.03964918,3240.9,3240.5,5.35223]
[1722467375697,0.03964918,3240.9,3240.5,5.35217]
[1722467376000,3.08537,3241.1,3240.5,6.195994]
[1722467376200,0.03957912,3241.0,3240.5,9.281874]
[1722467376420,0.03957912,3241.0,3240.5,6.195994]
[1722467376635,0.03957912,3241.0,3240.6,3.08583]
[1722467378047,0.03957912,3241.0,3240.7,0.2]
[1722467379720,0.03957912,3241.0,3240.7,3.28573]
[1722467380049,3.08537,3241.1,3240.8,0.637151]
[1722467380251,0.03951167,3240.9,3240.7,0.2]
[1722467380421,3.08537,3241.1,3240.7,0.2]
[1722467380603,0.03948402,3241.0,3240.7,0.2]
[1722467381233,0.03948402,3241.0,3240.7,3.28575]
[1722467381441,3.08531,3241.2,3240.7,3.28575]
[1722467381630,0.03931839,3240.9,3240.7,0.2]
[1722467381814,3.08537,3241.1,3240.7,0.2]
[1722467382140,0.03929074,3241.0,3240.7,0.2]
[1722467382437,3.12480074,3241.0,3240.7,0.2]
[1722467382952,3.08556,3240.9,3240.7,0.2]
[1722467383257,0.03935098,3240.8,3240.7,0.2]
[1722467384415,3.08549,3241.0,3240.7,0.2]
[1722467384617,0.03940617,3240.9,3240.7,0.2]
[1722467384821,3.08538,3241.1,3240.7,0.2]
[1722467385050,0.03946135,3241.0,3240.7,0.2]
[1722467385568,0.03946135,3241.0,3240.9,6.17112]
[1722467386038,4.05217282,3241.8,3241.2,3.0852]
[1722467386208,0.0369738,3241.5,3241.2,3.0852]
[1722467386409,4.05217282,3241.8,3241.2,3.0852]
[1722467386659,0.03708412,3241.7,3241.2,3.0852]
[1722467386953,0.03708412,3241.7,3241.2,6.1704]
[1722467387252,3.08496,3241.6,3241.0,3.0854]
[1722467387664,0.03714184,3241.5,3241.0,3.0854]
[1722467387954,0.03714184,3241.5,3241.1,3.08528]
[1722467388256,4.76962651,3241.7,3241.1,3.08528]
[1722467388419,0.03708668,3241.4,3241.1,3.08528]
[1722467388623,0.96742282,3241.6,3241.1,3.08528]
[1722467388840,0.03714184,3241.5,3241.1,3.08528]
[1722467390310,1.00570385,3241.5,3241.1,3.08528]
[1722467393342,0.96856201,3241.4,3241.2,3.08527]
[1722467393708,0.03702399,3241.3,3241.2,3.08527]
[1722467395512,1.005586,3241.3,3241.2,3.08527]
[1722467395738,0.03702399,3241.3,3241.2,3.08527]
[1722467396345,0.03702399,3241.3,3241.2,6.84930183]
[1722467396506,0.03702399,3241.3,3241.2,6.23223983]
[1722467396706,0.96998506,3241.6,3241.5,6.16998]
[1722467397139,1.00716437,3241.6,3241.5,6.16998]
[1722467397343,0.96998506,3241.7,3241.6,3.08489]
[1722467397531,1.29331341,3241.8,3241.5,3.08499]
[1722467397738,0.96997363,3241.6,3241.5,3.08499]
[1722467399039,1.29331341,3241.7,3241.6,3.08489]
[1722467400747,1.29331341,3241.8,3241.6,3.08489]
[1722467401811,1.29347404,3241.8,3241.6,3.08489]
[1722467402849,0.97009205,3241.7,3241.6,3.08489]
[1722467403257,1.29347404,3241.8,3241.6,3.08489]
[1722467404924,1.29342916,3241.8,3241.6,3.08489]
[1722467406621,0.96992188,3241.8,3241.7,9.2544]
[1722467406859,0.96992188,3242.1,3242.0,9.25353]
[1722467407160,13.78678645,3242.6,3242.3,6.16846]
[1722467407161,0.96992188,3242.4,3242.3,6.16846]
[1722467407360,0.96992188,3242.5,3242.4,7.032696]
[1722467407561,0.96992188,3242.6,3242.5,6.16808]
[1722467407965,10.55339,3243.2,3242.6,3.0839]
[1722467408268,0.96889524,3242.7,3242.6,3.0839]
[1722467408451,1.2924091,3242.8,3242.7,3.08384]
[1722467409068,0.96881455,3242.8,3242.7,3.08384]
[1722467409221,0.96881455,3242.8,3242.5,3.08398]
[1722467409423,0.96881455,3242.8,3242.6,3.08389]
[1722467410724,0.96881455,3242.8,3242.7,3.08384]
[1722467410929,1.2924091,3243.0,3242.9,3.08365]
[1722467410930,0.96881455,3243.0,3242.9,3.08365]
[1722467411175,3.08321,3243.4,3242.9,3.08365]
[1722467411485,0.96796042,3243.1,3242.9,3.08365]
[1722467411828,0.03418226,3243.0,3242.9,3.08365]
[1722467412530,0.03418226,3243.0,3242.8,3.08375]
[1722467412757,0.96796042,3243.1,3242.8,3.08375]
[1722467413280,4.37394389,3243.3,3242.8,3.08375]
[1722467413281,0.03422995,3243.0,3242.8,3.08375]
[1722467413588,0.03422995,3243.0,3242.9,6.1673]
[1722467413746,0.96796042,3243.6,3243.2,3.08332]
[1722467414277,0.96796042,3243.6,3243.2,6.16662]
[1722467414475,0.96796042,3243.7,3243.2,3.08331]
[1722467414828,0.96796042,3243.6,3242.8,3.05432996]
[1722467415029,0.96796042,3243.6,3243.2,3.0833]
[1722467415227,4.37346389,3243.8,3243.2,3.0833]
[1722467415228,0.96796042,3243.7,3243.2,3.0833]
[1722467415961,0.96796042,3243.7,3243.2,6.16661]
[1722467416168,0.96796042,3243.7,3243.2,3.0833]
[1722467416367,4.05081042,3243.8,3243.2,3.0833]
[1722467417089,0.96796042,3243.8,3243.2,3.0833]
[1722467417385,7.47,3243.9,3243.6,3.08291]
[1722467417588,0.96796042,3244.1,3243.6,3.08291]
[1722467417885,1.07421043,3244.1,3243.6,3.08291]
[1722467418191,3.96796042,3244.2,3243.6,3.08291]
[1722467418353,3.0,3244.2,3243.6,3.08291]
[1722467418554,3.0,3244.2,3243.8,3.0828]
[1722467418930,0.96796042,3244.3,3244.2,3.08242]
[1722467419203,4.37242389,3244.9,3243.9,2.39265284]
[1722467419204,3.08205,3244.6,3244.1,3.08251]
[1722467419502,3.08195,3244.7,3244.2,3.08241]
[1722467420104,3.08195,3244.7,3244.1,3.08246]
[1722467420810,3.08195,3244.7,3244.2,3.08241]
[1722467420998,3.08181,3244.9,3244.3,3.08232]
[1722467421159,3.08161,3245.1,3244.3,3.14389559]
[1722467421480,3.85431548,3245.1,3244.4,3.14384817]
[1722467421683,3.85431548,3245.1,3244.4,3.14379817]
[1722467421684,3.08174,3245.0,3244.4,3.14379817]
[1722467421879,0.77270548,3245.1,3244.4,3.14379817]
[1722467421880,5.47803,3245.2,3244.6,3.08197]
[1722467422283,3.08158,3245.1,3244.6,3.08197]
[1722467422891,5.47799,3245.2,3244.6,3.08197]
[1722467423105,3.08166,3245.0,3244.4,3.08216]
[1722467423307,5.47799,3245.2,3244.5,3.08205]
[1722467423513,3.08159,3245.1,3244.5,3.08205]
[1722467423837,5.47799,3245.2,3244.3,3.08225]
[1722467423838,3.08176,3244.9,3244.3,3.08225]
[1722467424001,3.08186,3244.8,3244.2,3.08237]
[1722467424194,3.244299,3245.2,3244.3,0.06163701]
[1722467424195,3.08175,3244.9,3244.3,0.06163701]
[1722467425521,3.08175,3244.9,3244.4,3.08223]
[1722467425844,6.16328,3245.1,3244.4,3.08216]
[1722467426122,6.16328,3245.1,3244.5,3.08213]
[1722467426329,3.244299,3245.2,3244.4,3.08214]
[1722467426532,3.08139,3245.3,3244.6,3.08197]
[1722467426946,3.08157,3245.1,3244.6,3.08197]
[1722467427315,3.08139,3245.3,3244.6,3.08197]
[1722467427316,0.03482812,3245.0,3244.7,0.06163626]
[1722467427632,3.08139,3245.3,3244.7,0.06163626]
[1722467428036,0.03493821,3245.2,3244.8,3.0818]
[1722467428224,3.08139,3245.3,3244.8,3.0818]
[1722467428426,3.08139,3245.3,3244.7,0.06163626]
[1722467428427,0.03493821,3245.2,3244.7,0.06163626]
[1722467428727,3.08167,3245.0,3244.5,2.297]
[1722467429026,0.03477308,3244.9,3244.6,3.08203]
[1722467429214,3.08163,3245.1,3244.6,3.08203]
[1722467429559,3.11656812,3245.0,3244.5,2.297]
[1722467429738,3.11656812,3245.0,3244.5,5.37913]
[1722467430108,3.11656812,3245.0,3244.4,0.308214]
[1722467430417,3.11656812,3245.0,3244.2,5.35626]
[1722467430418,6.16382,3244.8,3244.2,5.35626]
[1722467430616,0.03522478,3244.7,3244.2,5.35626]
[1722467431052,0.03522478,3244.7,3244.2,5.35625]
[1722467431219,3.08181,3244.9,3244.4,3.08222]
[1722467431430,0.03527983,3244.8,3244.4,3.08222]
[1722467431755,0.03527983,3244.8,3244.2,5.35623]
[1722467431918,0.06689402,3244.8,3244.2,5.891853]
[1722467432121,0.06689402,3244.8,3244.4,3.08221]
[1722467432353,0.06689402,3244.8,3244.5,3.14371692]
[1722467432532,0.06689402,3244.8,3244.6,3.08203]
[1722467432710,3.08162,3245.1,3244.6,3.08203]
[1722467432915,0.0670294,3244.7,3244.6,3.08203]
[1722467433145,3.08162,3245.1,3244.6,3.70461769]
[1722467433367,0.0670294,3244.7,3244.6,3.08203]
[1722467433553,3.08162,3245.1,3244.6,3.08203]
[1722467434052,0.06719162,3245.0,3244.6,3.08203]
[1722467434553,3.14886162,3245.0,3244.4,6.16436]
[1722467434753,3.14886162,3245.0,3244.4,7.0617483]
[1722467435134,3.14886162,3245.0,3244.5,3.08211]
[1722467435718,0.06719162,3245.0,3244.6,3.08204]
[1722467436260,0.06702927,3244.9,3244.6,3.08204]
[1722467436461,3.08163,3245.1,3244.6,3.08204]
[1722467436659,0.06708334,3245.0,3244.6,3.08204]
[1722467438042,0.06708334,3245.0,3244.4,7.0616783]
[1722467438244,3.14876334,3245.0,3244.4,3.9795283]
[1722467438862,3.08176,3244.9,3244.4,7.0616983]
[1722467439065,0.06698271,3244.8,3244.5,3.08208]
[1722467439233,3.08162,3245.1,3244.5,3.08208]
[1722467439562,0.06709337,3245.0,3244.6,3.08203]
[1722467441927,3.14875337,3245.0,3244.6,3.08203]
[1722467442128,3.08176,3244.9,3244.5,0.70616083]
[1722467442669,0.06700025,3244.8,3244.5,0.70616083]
[1722467443671,0.06700025,3244.8,3243.7,0.4]
[1722467443672,3.0824,3244.3,3243.7,0.4]
[1722467443845,3.08257,3244.1,3243.7,0.4]
[1722467444164,0.0669551,3244.0,3243.7,0.4]
[1722467444940,0.0669551,3244.0,3243.7,3.48289]
[1722467445367,5.52128,3244.3,3243.7,3.48289]
[1722467445563,0.06626215,3243.9,3243.7,0.4]
[1722467445766,3.08258,3244.1,3243.7,0.4]
[1722467446248,0.06647875,3244.0,3243.7,0.4]
[1722467446870,0.06647875,3244.0,3243.8,0.06165406]
[1722467447030,3.08218,3244.5,3243.8,3.14443406]
[1722467447278,0.06632905,3244.4,3243.8,3.14443406]
[1722467447596,0.06632905,3244.4,3243.7,0.748299]
[1722467447597,3.08238,3244.3,3243.7,0.748299]
[1722467447787,3.08243,3244.2,3243.7,0.748299]
[1722467447991,3.14868848,3244.2,3243.7,0.748299]
[1722467448281,0.06625848,3244.2,3243.7,3.831179]
[1722467448496,3.08235,3244.3,3243.7,3.831179]
[1722467448717,0.06625848,3244.2,3243.8,3.0828]
[1722467449077,3.08235,3244.3,3243.8,3.0828]
[1722467449325,0.06625848,3244.2,3243.8,3.0828]
[1722467449827,3.08235,3244.3,3243.7,0.748299]
[1722467450126,0.06628606,3244.2,3243.7,0.4]
[1722467450330,0.06628606,3244.2,3243.7,3.48284]
[1722467450883,3.08252,3244.1,3243.7,0.4]
[1722467451086,0.06617786,3244.0,3243.7,0.4]
[1722467452287,0.06617786,3244.0,3243.7,0.75445722]
[1722467452891,3.08243,3244.2,3243.7,0.75445722]
[1722467453093,0.06623196,3244.1,3243.7,0.75445722]
[1722467453599,6.23136196,3244.1,3243.7,0.4]
[1722467453813,3.08262,3244.0,3243.7,0.4]
[1722467454122,0.06609616,3243.9,3243.7,0.4]
[1722467454684,0.06609616,3243.9,3243.5,3.08302]
[1722467455530,0.06609616,3243.9,3243.6,3.08298]
[1722467455825,0.06609616,3243.9,3243.6,0.61661]
[1722467456027,3.08262,3244.0,3243.5,3.08307]
[1722467456231,0.06604205,3243.8,3243.5,3.08307]
[1722467456430,0.06609616,3243.9,3243.5,3.08307]
[1722467456609,0.06598794,3243.7,3243.5,3.699704]
[1722467456810,3.08262,3244.0,3243.5,3.699704]
[1722467457006,0.06593382,3243.6,3243.5,3.699704]
[1722467457209,3.08262,3244.0,3243.5,3.699704]
[1722467457409,0.06593382,3243.6,3243.5,3.699704]
[1722467457616,3.08262,3244.0,3243.5,0.616634]
[1722467457617,3.0828,3243.8,3243.5,0.616634]
[1722467457795,3.08262,3244.0,3243.3,3.08321]
[1722467457796,0.06593382,3243.6,3243.3,3.0832]
[1722467457998,3.08275,3243.9,3243.3,3.0832]
[1722467458301,4.04893295,3243.9,3243.3,3.0832]
[1722467458515,0.06628529,3243.8,3243.4,3.08318]
[1722467458833,0.06628529,3243.8,3243.4,3.14483565]
[1722467459168,0.06628529,3243.8,3243.4,3.95473356]
[1722467459307,0.06628529,3243.8,3243.4,0.87155356]
[1722467459503,0.06628529,3243.8,3243.3,3.08326]
[1722467459704,0.06628529,3243.8,3243.3,3.08323]
[1722467459910,0.06628529,3243.8,3243.2,2.4875]
[1722467459911,1.03455574,3243.8,3243.2,2.4875]
[1722467460105,4.11737574,3243.8,3243.2,3.08333]
[1722467460342,3.08314,3243.5,3242.9,5.48935]
[1722467460546,1.88367104,3243.8,3242.8,3.08375]
[1722467460547,3.08324,3243.4,3242.8,3.08375]
[1722467460714,3.08343,3243.2,3242.5,5.49138]
[1722467460915,0.06586924,3243.1,3242.5,5.49138]
[1722467461151,0.06586924,3243.1,3242.5,3.08396]
[1722467461313,1.03413969,3243.1,3242.6,3.08388]
[1722467462064,0.06586924,3243.1,3242.6,3.08388]
[1722467462360,1.03413969,3243.1,3242.6,3.08388]
[1722467462646,1.03413969,3243.1,3242.4,3.08412]
[1722467462647,4.05183045,3243.0,3242.4,3.08412]
[1722467462810,0.96827045,3242.9,3242.4,3.08412]
[1722467463016,4.11764595,3242.9,3242.3,3.0842]
[1722467463314,0.96827045,3242.8,3242.3,3.941784]
[1722467463525,0.06547206,3242.7,3242.3,0.857584]
[1722467463719,3.14938206,3242.7,3242.0,3.08445]
[1722467463921,3.14938206,3242.7,3241.8,3.08469]
[1722467463922,3.08419,3242.4,3241.8,3.08469]
[1722467464373,0.06507622,3242.3,3241.8,3.08469]
[1722467464516,0.06507622,3242.3,3241.6,3.08482]
[1722467464719,0.06507622,3242.3,3241.6,3.08481]
[1722467464720,3.0844,3242.2,3241.6,3.08481]
[1722467465069,3.0844,3242.2,3241.7,0.308481]
[1722467465255,0.06470798,3242.1,3241.7,0.308481]